bitfinex/quotes_SOLUSD_20251212
["timestamp","ask_amount","ask_price","bid_price","bid_amount"]
[1765497937798,8.02,136.51,136.48,0.71]
[1765497937799,15.34567266,136.51,136.48,0.71]
[1765497937998,0.4,136.54,136.48,0.71]
[1765497938304,8.42,136.53,136.49,8.80994492]
[1765497938475,8.02,136.52,136.49,8.80994492]
[1765497938677,8.02,136.52,136.49,9.51994492]
[1765497938877,7.32547066,136.51,136.49,9.51994492]
[1765497939485,25.63914731,136.51,136.46,13.0470912]
[1765497939702,25.63914731,136.51,136.47,9.51994492]
[1765497940084,25.63914731,136.51,136.48,0.71]
[1765497941487,8.42,136.5,136.46,0.71]
[1765497941680,8.42,136.5,136.45,9.51994492]
[1765497942003,8.42,136.5,136.44,8.02]
[1765497942004,0.4,136.49,136.44,8.80994492]
[1765497942178,8.02,136.48,136.44,8.80994492]
[1765497942379,8.02,136.48,136.41,8.73]
[1765497942581,0.4,136.47,136.41,0.71]
[1765497942980,0.68432314,136.47,136.41,0.71]
[1765497943190,25.64854169,136.46,136.41,0.71]
[1765497943401,26.04854169,136.46,136.41,0.71]
[1765497944004,25.64854169,136.46,136.42,8.80994492]
[1765497944194,25.64854169,136.46,136.43,0.69]
[1765497945103,7.32761779,136.47,136.44,8.80994492]
[1765497945304,7.32761779,136.47,136.45,0.69]
[1765497945506,25.64666226,136.47,136.39,13.0470912]
[1765497945696,26.04666226,136.47,136.4,9.49994492]
[1765497945882,26.04666226,136.47,136.41,0.69]
[1765497946283,25.64666226,136.47,136.41,8.02081207]
[1765497946808,25.64666226,136.47,136.43,8.80994492]
[1765497947306,25.64666226,136.47,136.42,0.69]
[1765497947487,0.4,136.46,136.42,0.69]
[1765497947901,25.64666226,136.47,136.42,0.69]
[1765497948100,26.04666226,136.47,136.42,0.69]
[1765497949690,26.04666226,136.47,136.43,8.80994492]
[1765497949896,25.64666226,136.47,136.43,8.80994492]
[1765497950111,25.64666226,136.47,136.44,0.69]
[1765497952616,18.31904447,136.47,136.45,8.80994492]
[1765497952925,15.34708089,136.48,136.45,8.80994492]
[1765497953091,15.34708089,136.48,136.46,0.69]
[1765497953428,33.66478311,136.48,136.46,0.69]
[1765497958035,15.34708089,136.48,136.46,0.69]
[1765497958321,7.32493407,136.52,136.47,8.80994492]
[1765497958917,7.32493407,136.52,136.48,0.69]
[1765497959088,7.72493407,136.52,136.48,0.69]
[1765497959288,34.05726925,136.52,136.48,0.69]
[1765497960011,0.4,136.51,136.47,0.69]
[1765497960214,33.65726925,136.52,136.47,0.69]
[1765497960399,34.05726925,136.52,136.47,0.69]
[1765497963926,0.4,136.51,136.46,8.80994492]
[1765497964525,0.4,136.51,136.46,9.49994492]
[1765497964724,0.4,136.51,136.47,0.69]
[1765497964902,33.65726925,136.52,136.47,0.69]
[1765497966224,33.65726925,136.52,136.47,8.01742086]
[1765497966626,33.65726925,136.52,136.49,8.80994492]
[1765497967008,33.65726925,136.52,136.5,0.69]
[1765497970921,33.65726925,136.52,136.49,8.80994492]
[1765497971119,33.65726925,136.52,136.5,0.69]
[1765497971314,33.65726925,136.52,136.49,0.69]
[1765497977216,33.65726925,136.52,136.5,8.80994492]
[1765497977418,33.65726925,136.52,136.47,0.7]
[1765497977732,33.65726925,136.52,136.49,8.80994492]
[1765497977733,34.05726925,136.52,136.49,8.80994492]
[1765497978236,34.05726925,136.52,136.49,0.7]
[1765497978537,33.65726925,136.52,136.49,0.7]
[1765497979942,25.63726925,136.52,136.49,0.7]
[1765497981537,18.31233518,136.52,136.49,0.7]
[1765497982636,7.32439756,136.53,136.49,0.7]
[1765497983142,7.32439756,136.53,136.49,8.02636346]
[1765497983528,7.32439756,136.53,136.5,0.7]
[1765497983846,18.31023881,136.54,136.5,0.7]
[1765497984921,18.31023881,136.54,136.5,8.0259246]
[1765497985443,7.32332478,136.55,136.52,8.80994492]
[1765497985846,25.63163675,136.55,136.53,0.7]
[1765497986230,25.63163675,136.55,136.51,16.09285959]
[1765497986747,25.63163675,136.55,136.5,7.32577038]
[1765497988243,25.63163675,136.55,136.51,9.50994492]
[1765497988624,25.63163675,136.55,136.52,0.7]
[1765497990244,0.1,136.57,136.53,16.13407515]
[1765497990451,0.71,136.56,136.53,8.80994492]
[1765497990628,0.71,136.56,136.52,0.7]
[1765497990629,0.71,136.56,136.52,8.80994492]
[1765497991045,0.71,136.56,136.52,9.50994492]
[1765497991549,0.71,136.56,136.52,8.80994492]
[1765497992449,25.63163675,136.55,136.52,9.50994492]
[1765497993628,26.34163675,136.55,136.52,9.50994492]
[1765497994842,18.30831197,136.55,136.52,8.80994492]
[1765497995148,7.32278851,136.56,136.53,0.7]
[1765497995345,0.1,136.57,136.53,0.7]
[1765497995524,0.1,136.57,136.55,8.80994492]
[1765497995925,0.1,136.57,136.55,9.50994492]
[1765497996149,8.13227755,136.57,136.54,8.02]
[1765497996337,8.13227755,136.57,136.53,9.50994492]
[1765497997124,26.43790836,136.57,136.54,0.7]
[1765497997933,25.72790836,136.57,136.54,0.7]
[1765497998648,25.72790836,136.57,136.55,8.80994492]
[1765497999031,7.42227755,136.57,136.55,0.7]
[1765497999351,0.1,136.57,136.56,8.80994492]
[1765498001458,0.1,136.57,136.56,0.7]
[1765498001849,0.1,136.57,136.56,8.80994492]
[1765498002169,0.1,136.57,136.56,9.50994492]
[1765498007035,0.1,136.57,136.56,16.83273343]
[1765498007960,0.1,136.57,136.56,17.11705657]
[1765498017374,0.1,136.57,136.56,9.50994492]
[1765498019877,0.1,136.57,136.56,16.83273343]
[1765498021054,0.1,136.57,136.56,17.11705657]
[1765498021377,0.1,136.6,136.59,21.85703612]
[1765498021576,0.1,136.65,136.64,9.09426806]
[1765498021759,0.1,136.65,136.64,17.11426806]
[1765498021961,0.1,136.65,136.64,17.83426806]
[1765498023084,0.1,136.65,136.64,25.15276923]
[1765498034988,0.1,136.66,136.65,0.28432314]
[1765498035297,0.1,136.71,136.69,22.14135926]
[1765498035471,0.1,136.71,136.7,17.11426806]
[1765498035664,0.1,136.71,136.7,17.79426806]
[1765498035895,0.1,136.71,136.7,16.82994492]
[1765498036072,0.8,136.71,136.7,8.80994492]
[1765498036272,8.11475385,136.71,136.7,8.80994492]
[1765498036571,0.8,136.71,136.7,8.80994492]
[1765498036775,0.1,136.71,136.7,16.12523387]
[1765498037176,0.1,136.71,136.7,8.80994492]
[1765498038503,0.1,136.71,136.7,16.94739544]
[1765498038703,0.1,136.71,136.7,17.08955701]
[1765498038898,0.1,136.71,136.7,16.40955701]
[1765498039288,0.1,136.71,136.7,17.08955701]
[1765498040215,0.1,136.71,136.7,16.40955701]
[1765498041427,0.1,136.71,136.7,8.80994492]
[1765498043207,0.1,136.71,136.7,16.12523387]
[1765498043408,0.1,136.71,136.7,17.08955701]
[1765498046514,0.1,136.73,136.72,13.0470912]
[1765498046805,0.1,136.73,136.72,30.82135926]
[1765498047113,0.1,136.73,136.72,20.70070475]
[1765498048408,0.1,136.73,136.72,28.01492359]
[1765498053113,0.1,136.79,136.77,0.28432314]
[1765498053411,0.1,136.79,136.78,30.82135926]
[1765498053594,0.1,136.79,136.78,30.14135926]
[1765498053799,0.1,136.79,136.78,29.85703612]
[1765498054908,0.1,136.79,136.78,37.1680465]
[1765498055599,0.1,136.87,136.82,8.80994492]
[1765498055798,0.1,136.87,136.86,8.80994492]
[1765498056112,0.1,136.87,136.86,17.09426806]
[1765498056313,0.1,136.87,136.86,17.77426806]
[1765498057007,0.1,136.87,136.86,25.08100487]
[1765498060305,0.1,136.89,136.88,21.85703612]
[1765498060615,0.1,136.89,136.88,29.85703612]
[1765498060799,0.1,136.89,136.88,30.82135926]
[1765498061205,0.1,136.89,136.88,38.12702845]
[1765498061513,0.1,136.89,136.88,37.44702845]
[1765498062692,0.1,136.89,136.88,38.12702845]
[1765498065001,0.1,136.89,136.88,45.43003315]
[1765498065503,0.1,136.89,136.88,38.12702845]
[1765498065891,0.1,136.89,136.88,29.85703612]
[1765498066097,0.79,136.89,136.88,29.85703612]
[1765498066293,0.79,136.89,136.88,8.10994492]
[1765498066504,0.79,136.89,136.85,21.92742023]
[1765498066710,0.79,136.89,136.83,8.0]
[1765498067423,25.56984218,136.88,136.83,8.0]
[1765498067802,0.6,136.87,136.83,8.0]
[1765498068303,0.6,136.87,136.8,8.80994492]
[1765498068507,0.6,136.87,136.81,8.0]
[1765498069509,7.30673681,136.86,136.81,8.0]
[1765498070019,0.6,136.85,136.81,8.0]
[1765498070923,0.6,136.85,136.78,8.80994492]
[1765498071113,0.6,136.85,136.78,16.80994492]
[1765498071463,25.57731656,136.84,136.75,8.80994492]
[1765498071616,25.57731656,136.84,136.75,16.80994492]
[1765498071805,0.6,136.83,136.75,16.80994492]
[1765498072006,0.6,136.83,136.75,37.16961439]
[1765498072913,0.6,136.83,136.75,24.12252319]
[1765498073116,13.0470912,136.81,136.7,0.68]
[1765498073303,0.6,136.8,136.71,15.31436185]
[1765498073506,25.58666568,136.79,136.72,21.85703612]
[1765498073919,0.6,136.78,136.72,21.85703612]
[1765498074615,0.6,136.78,136.72,8.80994492]
[1765498075127,7.31154492,136.77,136.72,8.80994492]
[1765498075721,0.6,136.76,136.72,8.80994492]
[1765498077215,7.91245394,136.76,136.72,8.80994492]
[1765498078025,0.6,136.75,136.72,8.80994492]
[1765498082315,7.91271683,136.75,136.72,8.80994492]
[1765498082833,0.6,136.74,136.72,8.80994492]
[1765498085133,11.92462317,136.73,136.65,11.92462317]
[1765498085311,11.92462317,136.7,136.67,15.31672077]
[1765498085636,11.92462317,136.7,136.69,13.0470912]
[1765498086133,0.6,136.76,136.72,8.80994492]
[1765498086313,0.6,136.76,136.72,15.31370711]
[1765498086514,7.91118254,136.78,136.73,9.48994492]
[1765498086714,0.6,136.77,136.73,9.48994492]
[1765498087333,7.93421381,136.77,136.73,8.80994492]
[1765498087727,0.6,136.76,136.73,8.80994492]
[1765498088433,0.6,136.76,136.73,16.12337344]
[1765498089816,0.6,136.83,136.78,0.28432314]
[1765498090030,7.93421381,136.83,136.79,8.80994492]
[1765498090311,0.6,136.83,136.79,8.80994492]
[1765498090515,147.03721779,136.87,136.81,8.80994492]
[1765498090516,7.33421381,136.85,136.81,8.80994492]
[1765498090717,7.93421381,136.85,136.81,8.80994492]
[1765498090929,0.6,136.84,136.81,8.80994492]
[1765498091231,7.33421381,136.83,136.81,8.80994492]
[1765498091439,7.33421381,136.82,136.81,8.80994492]
[1765498091827,15.24308678,136.82,136.81,8.80994492]
[1765498093141,7.90887297,136.82,136.81,8.80994492]
[1765498093333,7.33421381,136.83,136.81,8.80994492]
[1765498093334,7.3085684,136.83,136.81,8.80994492]
[1765498093535,7.9085684,136.83,136.81,8.80994492]
[1765498093819,7.30727073,136.85,136.81,0.72]
[1765498094020,7.90727073,136.85,136.81,0.72]
[1765498094422,7.33421381,136.82,136.8,8.80994492]
[1765498094629,7.33421381,136.81,136.77,21.85703612]
[1765498095029,7.33421381,136.81,136.78,0.72]
[1765498095841,14.6438959,136.81,136.78,0.72]
[1765498096639,18.86878555,136.85,136.79,24.14415873]
[1765498096846,26.20299936,136.85,136.8,0.28432314]
[1765498097031,26.20299936,136.85,136.8,1.00432314]
[1765498097227,33.51183541,136.84,136.8,0.72]
[1765498097428,7.33421381,136.82,136.79,8.0]
[1765498097735,26.1776216,136.84,136.79,8.0]
[1765498097736,0.6,136.83,136.79,8.0]
[1765498098053,14.64432116,136.8,136.78,21.85703612]
[1765498098440,7.30962801,136.81,136.78,21.85703612]
[1765498098627,7.90962801,136.81,136.78,21.85703612]
[1765498099036,15.24384182,136.81,136.78,21.85703612]
[1765498099552,33.51735983,136.81,136.78,21.85703612]
[1765498101554,7.33421381,136.79,136.74,17.84558754]
[1765498101753,7.33421381,136.77,136.75,8.80994492]
[1765498101927,7.33421381,136.76,136.75,8.80994492]
[1765498102255,7.33421381,136.76,136.69,0.72]
[1765498102430,7.33421381,136.73,136.71,13.0470912]
[1765498102636,7.33421381,136.73,136.72,8.80994492]
[1765498103136,14.64789771,136.73,136.72,8.80994492]
[1765498103337,14.64789771,136.73,136.7,9.52994492]
[1765498103939,7.33421381,136.72,136.7,9.52994492]
[1765498104153,7.33421381,136.72,136.7,0.72]
[1765498104357,7.33421381,136.72,136.71,8.80994492]
[1765498104944,7.93421381,136.72,136.71,8.80994492]
[1765498105135,14.64843265,136.72,136.71,8.80994492]
[1765498105737,15.24843265,136.72,136.7,8.80994492]
[1765498105959,7.33421381,136.71,136.7,8.80994492]
[1765498107261,15.24843265,136.72,136.7,8.80994492]
[1765498108163,7.33421381,136.71,136.7,8.80994492]
[1765498109151,15.24843265,136.72,136.7,8.80994492]
[1765498109538,7.33421381,136.71,136.7,8.80994492]
[1765498111562,139.75944323,136.77,136.7,17.52994492]
[1765498111563,7.33421381,136.74,136.7,17.52994492]
[1765498111746,7.33421381,136.74,136.71,0.72]
[1765498112451,14.64682806,136.75,136.71,1.00432314]
[1765498112960,14.64682806,136.75,136.73,8.80994492]
[1765498114660,14.64682806,136.75,136.72,0.72]
[1765498114661,7.33421381,136.74,136.71,0.72]
[1765498114867,7.33421381,136.74,136.72,8.80994492]
[1765498115071,7.33421381,136.73,136.72,8.80994492]
[1765498115454,7.93421381,136.73,136.71,8.80994492]
[1765498115661,15.24843265,136.72,136.71,8.80994492]
[1765498116161,15.24843265,136.72,136.7,8.80994492]
[1765498116354,7.33421381,136.71,136.7,8.80994492]
[1765498118875,14.64896766,136.71,136.7,8.80994492]
[1765498119362,7.33421381,136.71,136.7,9.52994492]
[1765498119555,15.33421381,136.74,136.7,9.52994492]
[1765498119752,7.33421381,136.72,136.7,8.80994492]
[1765498119953,7.33421381,136.71,136.7,8.80994492]
[1765498120169,7.33421381,136.71,136.7,0.72]
[1765498122980,7.33421381,136.72,136.7,0.72]
[1765498123277,14.64844671,136.72,136.7,0.72]
[1765498124572,7.33421381,136.74,136.71,8.80994492]
[1765498125072,7.33421381,136.75,136.73,8.80994492]
[1765498125277,14.64682806,136.75,136.73,8.80994492]
[1765498125459,15.24682806,136.75,136.71,9.46994492]
[1765498127181,103.2,136.8,136.71,21.85703612]
[1765498127383,7.33421381,136.81,136.75,16.14415873]
[1765498127688,7.93421381,136.81,136.76,8.0]
[1765498127983,7.33421381,136.79,136.76,8.0]
[1765498128286,7.33421381,136.78,136.75,8.80994492]
[1765498128582,7.33421381,136.78,136.75,9.46994492]
[1765498129172,7.31154492,136.77,136.75,9.46994492]
[1765498129872,8.0,136.81,136.75,9.46994492]
[1765498129873,26.87376588,136.81,136.76,0.66]
[1765498130184,7.93421381,136.8,136.76,0.66]
[1765498130570,7.33421381,136.8,136.75,8.80994492]
[1765498130880,7.33421381,136.77,136.75,8.80994492]
[1765498131091,7.31207955,136.76,136.75,8.80994492]
[1765498131460,14.64629336,136.76,136.75,8.80994492]
[1765498132182,14.64600579,136.77,136.75,8.80994492]
[1765498132358,7.31179198,136.77,136.75,8.80994492]
[1765498132763,7.91179198,136.77,136.75,8.80994492]
[1765498132971,15.24600579,136.77,136.75,8.80994492]
[1765498134882,14.64600579,136.77,136.75,8.80994492]
[1765498135296,0.6,136.76,136.75,8.80994492]
[1765498135469,7.93421381,136.76,136.75,8.80994492]
[1765498135991,33.52486811,136.77,136.75,8.80994492]
[1765498136290,7.93421381,136.76,136.75,8.80994492]
[1765498137187,15.24629336,136.76,136.75,8.80994492]
[1765498137385,33.52649224,136.76,136.73,8.80994492]
[1765498137593,7.33421381,136.74,136.73,8.80994492]
[1765498138466,7.93421381,136.75,136.73,8.80994492]
[1765498138662,7.33421381,136.75,136.73,8.80994492]
[1765498139077,33.52649224,136.76,136.73,9.46994492]
[1765498139296,15.24629336,136.76,136.73,9.46994492]
[1765498140098,7.33421381,136.74,136.71,8.80994492]
[1765498140278,7.33421381,136.73,136.71,8.80994492]
[1765498140483,7.33421381,136.72,136.71,8.80994492]
[1765498140674,2.87749113,136.72,136.71,8.80994492]
[1765498141382,10.19117503,136.73,136.71,8.80994492]
[1765498142474,10.79117503,136.73,136.71,8.80994492]
[1765498142675,15.25365095,136.73,136.71,8.80994492]
[1765498144396,26.21945567,136.77,136.73,8.80994492]
[1765498144779,26.21945567,136.77,136.75,8.80994492]
[1765498145203,7.31207955,136.76,136.75,8.80994492]
[1765498147601,14.65151197,136.77,136.75,8.80994492]
[1765498147792,7.33996705,136.76,136.73,8.80994492]
[1765498147995,7.33996705,136.74,136.73,8.80994492]
[1765498148299,7.33996705,136.74,136.71,9.46994492]
[1765498148681,11.92496902,136.74,136.71,8.80994492]
[1765498148888,19.23811806,136.74,136.73,8.80994492]
[1765498149290,19.23780168,136.75,136.73,8.80994492]
[1765498149478,19.23780168,136.75,136.73,0.66]
[1765498151091,19.23780168,136.75,136.73,8.80994492]
[1765498151401,11.92496902,136.74,136.71,9.46994492]
[1765498151701,11.92496902,136.74,136.73,8.80994492]
[1765498152603,12.52496902,136.74,136.71,8.80994492]
[1765498152796,11.92496902,136.72,136.71,8.80994492]
[1765498152999,11.92496902,136.72,136.68,8.0]
[1765498153302,11.92496902,136.7,136.69,8.80994492]
[1765498153505,19.24008355,136.71,136.69,9.51994492]
[1765498156308,7.31511453,136.71,136.69,9.49994492]
[1765498156485,19.92496902,136.74,136.71,8.80994492]
[1765498156882,11.92496902,136.73,136.71,0.69]
[1765498157305,19.23886829,136.73,136.71,0.69]
[1765498158007,11.92496902,136.72,136.69,8.80994492]
[1765498158206,11.92496902,136.72,136.69,9.49994492]
[1765498158406,11.92496902,136.72,136.71,8.80994492]
[1765498158613,12.52496902,136.72,136.71,8.80994492]
[1765498160409,19.23918786,136.72,136.71,8.80994492]
[1765498162697,11.81102795,136.72,136.71,8.80994492]
[1765498165318,12.41102795,136.72,136.71,8.80994492]
[1765498165816,11.81102795,136.72,136.71,8.80994492]
[1765498167122,11.81102795,136.72,136.7,8.80994492]
[1765498167496,11.81102795,136.72,136.7,9.49994492]
[1765498168015,7.31421884,136.72,136.71,0.69]
[1765498168332,11.81102795,136.72,136.7,9.49994492]
[1765498168917,11.81102795,136.72,136.7,8.80994492]
[1765498169319,11.81102795,136.72,136.7,9.49994492]
[1765498170197,7.31421884,136.72,136.7,9.49994492]
[1765498172908,25.59789365,136.73,136.7,8.80994492]
[1765498173111,30.09470276,136.73,136.7,9.49994492]
[1765498174410,30.69470276,136.73,136.7,9.49994492]
[1765498174921,4.49680911,136.72,136.7,8.80994492]
[1765498175411,4.49680911,136.72,136.7,9.49994492]
[1765498176802,5.09680911,136.71,136.7,8.80994492]
[1765498177020,12.41156296,136.71,136.7,8.80994492]
[1765498177415,11.81156296,136.71,136.7,8.80994492]
[1765498177615,30.6984476,136.71,136.69,8.80994492]
[1765498177923,4.49680911,136.7,136.69,8.80994492]
[1765498178427,30.0984476,136.71,136.69,8.80994492]
[1765498179227,4.49680911,136.7,136.68,8.80994492]
[1765498179600,5.09680911,136.69,136.66,8.80994492]
[1765498179831,4.49680911,136.68,136.66,0.69]
[1765498180039,5.09680911,136.69,136.66,0.69]
[1765498180534,4.49680911,136.69,136.66,0.69]
[1765498181024,5.09680911,136.69,136.66,0.69]
[1765498181213,7.31635937,136.68,136.66,0.69]
[1765498181415,7.31602024,136.69,136.66,0.69]
[1765498189510,0.6,136.75,136.69,8.80994492]
[1765498189815,7.31314904,136.74,136.7,0.66]
[1765498190021,7.31314904,136.74,136.7,8.66]
[1765498190215,7.31314904,136.74,136.7,15.97517477]
[1765498190420,7.31314904,136.74,136.72,8.80994492]
[1765498192736,7.31314904,136.74,136.72,9.46994492]
[1765498194239,7.31244723,136.76,136.71,26.35384523]
[1765498194421,7.31244723,136.76,136.74,8.80994492]
[1765498194824,7.31244723,136.76,136.74,9.46994492]
[1765498195041,7.31244723,136.76,136.74,8.80994492]
[1765498195238,7.31244723,136.76,136.75,9.46994492]
[1765498195524,7.31244723,136.76,136.75,8.80994492]
[1765498195935,7.31244723,136.76,136.75,9.46994492]
[1765498196428,7.31154492,136.77,136.76,8.80994492]
[1765498196626,7.91154492,136.77,136.76,8.80994492]
[1765498197618,7.31154492,136.77,136.76,8.80994492]
[1765498197948,38.68721635,136.77,136.74,8.80994492]
[1765498198125,5.09680911,136.76,136.74,8.80994492]
[1765498199727,0.6,136.76,136.74,8.80994492]
[1765498200533,11.80942336,136.75,136.73,8.80994492]
[1765498200746,4.49680911,136.74,136.7,8.80994492]
[1765498200937,5.09680911,136.74,136.7,22.51703612]
[1765498201251,5.09680911,136.74,136.72,8.80994492]
[1765498201453,0.6,136.74,136.72,8.80994492]
[1765498201825,38.690959,136.75,136.72,8.80994492]
[1765498202250,34.19414989,136.75,136.72,9.46994492]
[1765498202455,38.690959,136.75,136.72,9.46994492]
[1765498202656,15.31261425,136.75,136.73,0.66]
[1765498203140,15.31261425,136.75,136.72,9.46994492]
[1765498203326,15.31261425,136.75,136.73,0.66]
[1765498203871,7.31261425,136.75,136.72,0.66]
[1765498205855,11.80942336,136.75,136.72,0.66]
[1765498206454,12.40942336,136.75,136.71,9.46994492]
[1765498206948,12.40942336,136.75,136.71,8.80994492]
[1765498207138,12.40942336,136.75,136.72,0.66]
[1765498208640,10.78901699,136.75,136.72,0.66]
[1765498210141,7.91261425,136.75,136.72,0.66]
[1765498210454,0.14216157,136.81,136.72,0.66]
[1765498210455,7.31047591,136.79,136.75,8.80994492]
[1765498210647,7.31047591,136.79,136.77,8.80994492]
[1765498211258,7.31047591,136.79,136.78,9.46994492]
[1765498211455,7.31047591,136.79,136.78,8.80994492]
[1765498211672,25.58561586,136.8,136.78,8.80994492]
[1765498212734,7.30994152,136.8,136.79,8.80994492]
[1765498212938,7.30994152,136.8,136.79,9.46994492]
[1765498213160,7.30994152,136.8,136.79,8.80994492]
[1765498213852,18.26978471,136.84,136.79,12.34634766]
[1765498214098,18.26978471,136.84,136.81,8.80994492]
[1765498214240,18.86978471,136.84,136.81,8.80994492]
[1765498214936,18.86978471,136.84,136.81,0.66]
[1765498214937,7.3085999,136.83,136.81,0.66]
[1765498215142,7.3085999,136.83,136.82,8.80994492]
[1765498215458,21.74357647,136.86,136.82,8.80994492]
[1765498215664,18.86717373,136.86,136.84,8.80994492]
[1765498216237,7.30740185,136.85,136.82,0.66]
[1765498217862,0.1,136.89,136.85,8.80994492]
[1765498218065,0.1,136.89,136.85,16.80994492]
[1765498218270,0.1,136.89,136.87,8.80994492]
[1765498218848,7.40536337,136.89,136.87,8.80994492]
[1765498220457,7.30227906,136.95,136.88,3.53640274]
[1765498220773,7.30300153,136.93,136.89,22.14135926]
[1765498220946,10.17940427,136.93,136.9,0.66]
[1765498221343,7.30300153,136.93,136.9,0.66]
[1765498221564,8.0,136.97,136.92,0.28432314]
[1765498221769,0.1,136.98,136.95,11.9706708]
[1765498222064,0.1,136.98,136.97,8.80994492]
[1765498222455,0.1,136.98,136.97,9.46994492]
[1765498223467,0.1,136.98,136.97,19.9315396]
[1765498223856,0.1,137.01,137.0,21.85703612]
[1765498224061,0.1,137.01,137.0,29.85703612]
[1765498224271,0.1,137.01,137.0,33.39343886]
[1765498224863,0.1,137.01,137.0,30.51703612]
[1765498225055,0.1,137.01,137.0,37.81630619]
[1765498225652,0.1,137.01,137.0,30.51703612]
[1765498225857,0.1,137.01,137.0,21.85703612]
[1765498226059,3.67640274,137.01,136.94,0.66]
[1765498226269,0.8,137.01,136.94,8.66]
[1765498226486,2.87640274,136.96,136.94,8.0]
[1765498226771,7.31487877,136.96,136.93,8.80994492]
[1765498226983,14.61671869,136.96,136.92,21.7070912]
[1765498227171,14.61671869,136.96,136.93,0.66]
[1765498227354,14.61671869,136.96,136.93,9.46994492]
[1765498228961,7.31487877,136.95,136.93,8.80994492]
[1765498229156,7.31487877,136.95,136.92,8.0]
[1765498229359,7.31487877,136.94,136.93,8.80994492]
[1765498229778,7.31487877,136.94,136.92,8.80994492]
[1765498230354,7.3026485,136.94,136.92,8.80994492]
[1765498230761,14.61752727,136.94,136.92,8.80994492]
[1765498230962,7.3026485,136.94,136.92,8.80994492]
[1765498231455,7.31487877,136.93,136.9,8.0]
[1765498231654,7.31487877,136.93,136.85,18.26767204]
[1765498231655,7.31487877,136.91,136.85,0.66]
[1765498231967,7.31487877,136.9,136.86,8.66]
[1765498232165,7.31487877,136.9,136.87,8.80994492]
[1765498233057,7.30513551,136.89,136.87,8.80994492]
[1765498234781,32.87916927,136.91,136.87,8.80994492]
[1765498234979,33.57916927,136.91,136.87,8.80994492]
[1765498235479,33.57916927,136.91,136.87,9.46994492]
[1765498236355,7.30353814,136.92,136.88,0.66]
[1765498236600,8.01487877,136.95,136.9,8.80994492]
[1765498236792,7.31487877,136.94,136.9,9.46994492]
[1765498237077,7.31487877,136.94,136.9,8.80994492]
[1765498237078,7.31487877,136.93,136.9,8.80994492]
[1765498237269,8.01487877,136.93,136.9,8.80994492]
[1765498237456,7.31487877,136.92,136.9,8.80994492]
[1765498237663,8.01487877,136.92,136.9,8.80994492]
[1765498238861,7.30406836,136.91,136.9,8.80994492]
[1765498239675,7.30355302,136.92,136.9,9.46994492]
[1765498240687,7.30319298,136.93,136.9,9.46994492]
[1765498241180,0.7,137.0,136.93,13.0470912]
[1765498241384,7.31487877,136.97,136.94,16.80994492]
[1765498241577,7.31487877,136.97,136.94,8.80994492]
[1765498241774,7.31487877,136.95,136.92,8.0]
[1765498241980,7.31487877,136.95,136.9,22.51703612]
[1765498241981,7.31487877,136.94,136.9,30.51703612]
[1765498242190,7.31487877,136.94,136.9,21.7070912]
[1765498242403,7.31487877,136.93,136.91,8.80994492]
[1765498242993,7.31487877,136.92,136.91,8.80994492]
[1765498243166,14.61841368,136.92,136.91,8.80994492]
[1765498243368,14.6180723,136.93,136.9,8.80994492]
[1765498243692,14.6180723,136.93,136.9,9.47994492]
[1765498243868,7.30319353,136.93,136.9,9.47994492]
[1765498247589,8.00487877,136.93,136.9,8.80994492]
[1765498248000,7.31487877,136.94,136.9,9.47994492]
[1765498248671,2.86838113,136.94,136.9,9.47994492]
[1765498249074,7.30300153,136.93,136.9,9.47994492]
[1765498252694,7.30300153,136.93,136.9,8.80994492]
[1765498252891,7.30300153,136.93,136.92,8.80994492]
[1765498253088,111.2,136.98,136.92,8.80994492]
[1765498253089,21.12106982,136.97,136.92,8.80994492]
[1765498253397,0.69,136.96,136.92,9.47994492]
[1765498253697,7.99140186,136.96,136.92,9.47994492]
[1765498255305,7.30140186,136.96,136.92,16.11344281]
[1765498255476,7.30140186,136.96,136.94,8.80994492]
[1765498255897,7.99140186,136.96,136.94,8.80994492]
[1765498256682,7.99140186,136.96,136.92,7.97324516]
[1765498256897,7.30140186,136.96,136.92,16.78319008]
[1765498257209,7.30140186,136.96,136.94,8.80994492]
[1765498257914,25.55355749,136.97,136.94,0.67]
[1765498258574,7.3008688,136.97,136.94,0.67]
[1765498259007,7.3008688,136.97,136.94,8.67]